[Event "St Kilda East and Caulfield Chess Club T3 2025 OPEN Thursdays"]
[Site "st kilda east, Australia"]
[Date "2025.08.28"]
[Round "5.2"]
[White "Hird, Jasper"]
[Black "Milic, James"]
[Result "0-1"]
[TimeControl "60 minutes per player per game plus 10 seconds from move 1"]
[WhiteElo "1459"]
[BlackElo "1368"]

1. e4 {[%clk 01:00:07]} {[%emt 00:00:04]} e5 {[%clk 01:00:02]} {[%emt
00:00:07]} 2. Nf3 {[%clk 01:00:13]} {[%emt 00:00:04]} Nc6 {[%clk 01:00:07]}
{[%emt 00:00:05]} 3. Bc4 {[%clk 01:00:17]} {[%emt 00:00:06]} Nf6 {[%clk
01:00:09]} {[%emt 00:00:07]} 4. d3 {[%clk 01:00:20]} {[%emt 00:00:08]} Bc5
{[%clk 01:00:01]} {[%emt 00:00:18]} 5. O-O {[%clk 01:00:23]} {[%emt 00:00:08]}
d6 {[%clk 01:00:02]} {[%emt 00:00:08]} 6. c3 {[%clk 01:00:26]} {[%emt
00:00:07]} a5 {[%clk 01:00:03]} {[%emt 00:00:09]} 7. a4 {[%clk 01:00:23]}
{[%emt 00:00:13]} Ba7 {[%clk 00:59:17]} {[%emt 00:00:56]} 8. Nbd2 {[%clk
01:00:22]} {[%emt 00:00:12]} O-O {[%clk 00:59:14]} {[%emt 00:00:12]} 9. h3
{[%clk 01:00:27]} {[%emt 00:00:05]} Be6 {[%clk 00:58:25]} {[%emt 00:00:59]} 10.
Re1 {[%clk 01:00:28]} {[%emt 00:00:10]} d5 {[%clk 00:53:58]} {[%emt 00:04:37]}
11. exd5 {[%clk 01:00:21]} {[%emt 00:00:17]} Nxd5 {[%clk 00:53:23]} {[%emt
00:00:45]} 12. Ne4 {[%clk 00:59:18]} {[%emt 00:01:13]} f6 {[%clk 00:51:17]}
{[%emt 00:02:16]} 13. d4 {[%clk 00:56:01]} {[%emt 00:03:27]} exd4 {[%clk
00:49:28]} {[%emt 00:01:58]} 14. cxd4 {[%clk 00:55:19]} {[%emt 00:00:52]} Bf7
{[%clk 00:46:12]} {[%emt 00:03:25]} 15. Be3 {[%clk 00:48:18]} {[%emt 00:07:12]}
Ncb4 {[%clk 00:44:05]} {[%emt 00:02:17]} 16. Nh4 {[%clk 00:44:00]} {[%emt
00:04:27]} Kh8 {[%clk 00:33:59]} {[%emt 00:10:17]} 17. Bxd5 {[%clk 00:40:57]}
{[%emt 00:03:13]} Qxd5 {[%clk 00:32:22]} {[%emt 00:01:46]} 18. Ng3 {[%clk
00:36:47]} {[%emt 00:04:20]} Be6 {[%clk 00:29:05]} {[%emt 00:03:28]} 19. Rc1
{[%clk 00:33:07]} {[%emt 00:03:50]} c6 {[%clk 00:28:32]} {[%emt 00:00:43]} 20.
f4 {[%clk 00:30:46]} {[%emt 00:02:31]} Rac8 {[%clk 00:23:25]} {[%emt 00:05:17]}
21. f5 {[%clk 00:30:16]} {[%emt 00:00:39]} Bf7 {[%clk 00:23:12]} {[%emt
00:00:24]} 22. Qg4 {[%clk 00:27:55]} {[%emt 00:02:31]} Nd3 {[%clk 00:20:01]}
{[%emt 00:03:21]} 23. Ng6+ {[%clk 00:27:46]} {[%emt 00:00:19]} hxg6 {[%clk
00:18:28]} {[%emt 00:01:43]} 24. fxg6 {[%clk 00:27:29]} {[%emt 00:00:27]} Bxg6
{[%clk 00:17:46]} {[%emt 00:00:52]} 25. Qxg6 {[%clk 00:27:23]} {[%emt
00:00:16]} Nxe1 {[%clk 00:17:10]} {[%emt 00:00:46]} 26. Nf5 {[%clk 00:27:08]}
{[%emt 00:00:24]} Qxg2+ {[%clk 00:16:51]} {[%emt 00:00:30]} 27. Qxg2 {[%clk
00:27:06]} {[%emt 00:00:12]} Nxg2 {[%clk 00:16:57]} {[%emt 00:00:05]} 28. Kxg2
{[%clk 00:27:10]} {[%emt 00:00:05]} Rcd8 {[%clk 00:15:56]} {[%emt 00:01:12]} 29.
Rf1 {[%clk 00:26:53]} {[%emt 00:00:27]} g6 {[%clk 00:15:07]} {[%emt 00:01:00]}
30. Nh4 {[%clk 00:26:52]} {[%emt 00:00:11]} Kg7 {[%clk 00:14:45]} {[%emt
00:00:31]} 31. Nf3 {[%clk 00:26:58]} {[%emt 00:00:05]} Rfe8 {[%clk 00:14:01]}
{[%emt 00:00:54]} 32. Kf2 {[%clk 00:26:03]} {[%emt 00:01:05]} Rd5 {[%clk
00:13:15]} {[%emt 00:00:56]} 33. Re1 {[%clk 00:25:46]} {[%emt 00:00:27]} Kf7
{[%clk 00:12:37]} {[%emt 00:00:48]} 34. h4 {[%clk 00:25:27]} {[%emt 00:00:28]}
c5 {[%clk 00:11:43]} {[%emt 00:01:04]} 35. Rc1 {[%clk 00:24:37]} {[%emt
00:01:01]} cxd4 {[%clk 00:11:06]} {[%emt 00:00:47]} 36. Bd2 {[%clk 00:23:57]}
{[%emt 00:00:49]} d3+ {[%clk 00:10:30]} {[%emt 00:00:47]} 37. Kg3 {[%clk
00:23:29]} {[%emt 00:00:38]} Re7 {[%clk 00:08:14]} {[%emt 00:02:26]} 38. Rf1
{[%clk 00:22:40]} {[%emt 00:01:00]} Rf5 {[%clk 00:06:54]} {[%emt 00:01:30]} 39.
Rc1 {[%clk 00:20:45]} {[%emt 00:02:04]} Bb8+ {[%clk 00:06:38]} {[%emt
00:00:26]} 0-1

[Event "St Kilda East and Caulfield Chess Club T3 2025 OPEN Thursdays"]
[Site "st kilda east, Australia"]
[Date "2025.08.28"]
[Round "5.1"]
[White "Sandler, Leonid"]
[Black "Hendrey, Thomas"]
[Result "1-0"]
[TimeControl "60 minutes per player per game plus 10 seconds from move 1"]
[WhiteElo "2279"]
[BlackElo "1919"]

1. d4 {[%clk 01:00:06]} {[%emt 00:00:02]} Nf6 {[%clk 01:00:09]} {[%emt
00:00:02]} 2. c4 {[%clk 01:00:08]} {[%emt 00:00:07]} c5 {[%clk 01:00:13]}
{[%emt 00:00:07]} 3. Nf3 {[%clk 00:59:52]} {[%emt 00:00:25]} cxd4 {[%clk
01:00:19]} {[%emt 00:00:04]} 4. Nxd4 {[%clk 01:00:01]} {[%emt 00:00:01]} e6
{[%clk 01:00:08]} {[%emt 00:00:21]} 5. g3 {[%clk 00:59:10]} {[%emt 00:00:59]}
d5 {[%clk 00:58:38]} {[%emt 00:01:41]} 6. Bg2 {[%clk 00:59:15]} {[%emt
00:00:05]} Nc6 {[%clk 00:55:40]} {[%emt 00:03:09]} 7. O-O {[%clk 00:58:38]}
{[%emt 00:00:46]} Qb6 {[%clk 00:53:11]} {[%emt 00:02:40]} 8. Nb5 {[%clk
00:47:54]} {[%emt 00:10:54]} dxc4 {[%clk 00:41:59]} {[%emt 00:11:22]} 9. N1c3
{[%clk 00:43:55]} {[%emt 00:04:09]} Nd5 {[%clk 00:21:25]} {[%emt 00:20:44]} 10.
Bxd5 {[%clk 00:43:27]} {[%emt 00:00:38]} exd5 {[%clk 00:21:33]} {[%emt
00:00:02]} 11. Nxd5 {[%emt 00:03:50]} c3 12. Ndxc3 1-0

[Event "St Kilda East and Caulfield Chess Club T3 2025 OPEN Thursdays"]
[Site "st kilda east, Australia"]
[Date "2025.08.28"]
[Round "5.8"]
[White "Lopata, Felix"]
[Black "Warren, Elizabeth"]
[Result "1-0"]
[TimeControl "60 minutes per player per game plus 10 seconds from move 1"]
[WhiteElo "1254"]
[BlackElo "837"]

1. d4 {[%clk 01:00:04]} Nf6 {[%emt 00:00:44]} 2. c4 {[%clk 00:59:43]} e6 {[%clk
00:59:59]} {[%emt 00:00:12]} 3. Nc3 {[%clk 00:59:46]} {[%emt 00:00:06]} d5
{[%clk 00:59:58]} {[%emt 00:00:11]} 4. cxd5 {[%clk 00:59:50]} {[%emt 00:00:06]}
exd5 {[%clk 01:00:01]} {[%emt 00:00:07]} 5. Bg5 {[%clk 00:59:53]} {[%emt
00:00:06]} c6 {[%clk 00:59:45]} {[%emt 00:00:26]} 6. e3 {[%clk 00:59:57]}
{[%emt 00:00:06]} Bb4 {[%clk 00:59:18]} {[%emt 00:00:37]} 7. Bd3 {[%clk
00:59:43]} {[%emt 00:00:24]} h6 {[%clk 00:58:00]} {[%emt 00:01:28]} 8. Bh4
{[%clk 00:57:58]} {[%emt 00:01:55]} Nbd7 {[%clk 00:54:53]} {[%emt 00:03:18]} 9.
Nge2 {[%clk 00:57:44]} {[%emt 00:00:23]} g5 {[%clk 00:53:19]} {[%emt 00:01:45]}
10. Bg3 {[%clk 00:56:54]} {[%emt 00:01:00]} Bxc3+ {[%clk 00:51:40]} {[%emt
00:01:49]} 11. Nxc3 {[%clk 00:56:39]} {[%emt 00:00:24]} Qe7 {[%clk 00:51:21]}
{[%emt 00:00:29]} 12. Qc2 {[%clk 00:53:57]} {[%emt 00:02:52]} c5 {[%clk
00:48:26]} {[%emt 00:03:05]} 13. Nb5 {[%clk 00:52:01]} {[%emt 00:02:06]} O-O
{[%clk 00:46:44]} {[%emt 00:01:52]} 14. Bd6 {[%clk 00:51:48]} {[%emt 00:00:23]}
Qe6 {[%clk 00:45:24]} {[%emt 00:01:29]} 15. Bxf8 {[%clk 00:51:38]} {[%emt
00:00:19]} Kxf8 {[%clk 00:44:32]} {[%emt 00:01:03]} 16. Nc7 {[%clk 00:51:17]}
{[%emt 00:00:31]} Qg4 {[%clk 00:44:26]} {[%emt 00:00:16]} 17. Nxa8 {[%clk
00:51:00]} {[%emt 00:00:27]} Qxg2 {[%clk 00:44:09]} {[%emt 00:00:27]} 18. O-O-O
{[%clk 00:50:51]} {[%emt 00:00:19]} c4 {[%clk 00:43:53]} {[%emt 00:00:26]} 19.
Bxc4 {[%clk 00:49:39]} {[%emt 00:01:22]} Ne4 {[%clk 00:43:30]} {[%emt
00:00:33]} 20. Bxd5 {[%clk 00:49:28]} {[%emt 00:00:21]} Qxf2 {[%clk 00:40:38]}
{[%emt 00:03:01]} 21. Qxc8+ {[%clk 00:49:09]} {[%emt 00:00:29]} Kg7 {[%clk
00:40:42]} {[%emt 00:00:06]} 22. Bxe4 {[%clk 00:49:05]} {[%emt 00:00:13]} Qxe3+
{[%clk 00:40:41]} {[%emt 00:00:12]} 23. Kb1 {[%clk 00:48:53]} {[%emt 00:00:22]}
Qxe4+ {[%clk 00:40:39]} {[%emt 00:00:12]} 24. Ka1 {[%clk 00:48:56]} {[%emt
00:00:07]} Nf6 {[%clk 00:40:01]} {[%emt 00:00:47]} 25. Nc7 {[%clk 00:48:00]}
{[%emt 00:01:05]} Qf3 {[%clk 00:39:29]} {[%emt 00:00:43]} 26. Rhf1 {[%clk
00:47:47]} {[%emt 00:00:23]} Qe2 {[%clk 00:38:47]} {[%emt 00:00:51]} 27. Rde1
{[%clk 00:47:34]} {[%emt 00:00:24]} Qxh2 {[%clk 00:38:38]} {[%emt 00:00:19]} 28.
Ne8+ {[%clk 00:47:27]} {[%emt 00:00:17]} Nxe8 {[%clk 00:37:42]} {[%emt
00:01:06]} 29. Qxe8 {[%clk 00:47:26]} {[%emt 00:00:11]} Qc7 {[%clk 00:37:30]}
{[%emt 00:00:23]} 30. Re7 {[%clk 00:47:07]} {[%emt 00:00:29]} Qc4 {[%clk
00:37:06]} {[%emt 00:00:35]} 31. Rexf7+ {[%clk 00:46:14]} {[%emt 00:01:03]} 1-0

[Event "St Kilda East and Caulfield Chess Club T3 2025 OPEN Thursdays"]
[Site "st kilda east, Australia"]
[Date "2025.08.28"]
[Round "5.3"]
[White "Kagan, Naum"]
[Black "Hennessy, Maurice"]
[Result "1-0"]
[TimeControl "60 minutes per player per game plus 10 seconds from move 1"]
[WhiteElo "2079"]
[BlackElo "1255"]

1. Nf3 {[%clk 01:00:07]} {[%emt 00:00:02]} d5 {[%clk 00:59:53]} {[%emt
00:00:18]} 2. b3 {[%clk 01:00:12]} {[%emt 00:00:05]} Nf6 {[%clk 00:59:33]}
{[%emt 00:00:30]} 3. Bb2 {[%clk 01:00:20]} {[%emt 00:00:02]} Bf5 {[%clk
00:59:06]} {[%emt 00:00:37]} 4. e3 {[%clk 00:58:53]} {[%emt 00:01:37]} e6
{[%clk 00:58:46]} {[%emt 00:00:31]} 5. c4 {[%clk 00:58:32]} {[%emt 00:00:31]}
c6 {[%clk 00:58:15]} {[%emt 00:00:42]} 6. Nc3 {[%clk 00:57:53]} {[%emt
00:00:48]} Bd6 {[%clk 00:56:22]} {[%emt 00:02:03]} 7. d3 {[%clk 00:54:55]}
{[%emt 00:03:07]} O-O {[%clk 00:54:27]} {[%emt 00:02:06]} 8. Nh4 {[%clk
00:51:06]} {[%emt 00:03:59]} Bg4 {[%clk 00:52:34]} {[%emt 00:02:03]} 9. Be2
{[%clk 00:50:57]} {[%emt 00:00:19]} Bxe2 {[%clk 00:51:59]} {[%emt 00:00:45]} 10.
Qxe2 {[%clk 00:50:26]} {[%emt 00:00:40]} Nbd7 {[%clk 00:50:48]} {[%emt
00:01:22]} 11. Nf3 {[%clk 00:47:27]} {[%emt 00:03:09]} Ne5 {[%clk 00:48:05]}
{[%emt 00:02:53]} 12. Nxe5 {[%clk 00:45:07]} {[%emt 00:02:29]} Bxe5 {[%clk
00:47:54]} {[%emt 00:00:22]} 13. f4 {[%clk 00:44:51]} {[%emt 00:00:25]} Bc7
{[%clk 00:46:07]} {[%emt 00:01:58]} 14. O-O {[%clk 00:41:50]} {[%emt 00:03:11]}
Bb6 {[%clk 00:42:07]} {[%emt 00:04:10]} 15. Na4 {[%clk 00:40:42]} {[%emt
00:01:18]} Bc7 {[%clk 00:40:56]} {[%emt 00:01:22]} 16. Rf3 {[%clk 00:39:31]}
{[%emt 00:01:21]} Re8 {[%clk 00:38:39]} {[%emt 00:02:27]} 17. Raf1 {[%clk
00:30:58]} {[%emt 00:08:42]} e5 {[%clk 00:34:54]} {[%emt 00:03:56]} 18. fxe5
{[%clk 00:30:47]} {[%emt 00:00:21]} Bxe5 {[%clk 00:34:46]} {[%emt 00:00:18]} 19.
Bxe5 {[%clk 00:30:55]} {[%emt 00:00:02]} Rxe5 {[%clk 00:34:46]} {[%emt
00:00:10]} 20. cxd5 {[%clk 00:26:57]} {[%emt 00:04:07]} cxd5 {[%clk 00:32:40]}
{[%emt 00:02:17]} 21. Nb2 {[%clk 00:25:40]} {[%emt 00:01:26]} Qe7 {[%clk
00:28:29]} {[%emt 00:04:21]} 22. d4 {[%clk 00:24:18]} {[%emt 00:01:32]} Re4
{[%clk 00:26:45]} {[%emt 00:01:55]} 23. Qd2 {[%clk 00:19:48]} {[%emt 00:04:39]}
Re8 {[%clk 00:23:55]} {[%emt 00:03:01]} 24. Nd1 {[%clk 00:19:19]} {[%emt
00:00:39]} Qe6 {[%clk 00:21:36]} {[%emt 00:02:29]} 25. h3 {[%clk 00:18:09]}
{[%emt 00:01:19]} Re7 {[%clk 00:20:34]} {[%emt 00:01:13]} 26. Qc2 {[%clk
00:14:20]} {[%emt 00:04:00]} Ne8 {[%clk 00:13:42]} {[%emt 00:07:02]} 27. g4
{[%clk 00:12:29]} {[%emt 00:02:00]} Rc7 {[%clk 00:12:41]} {[%emt 00:01:12]} 28.
Qh2 {[%clk 00:12:05]} {[%emt 00:00:34]} Re7 {[%clk 00:10:10]} {[%emt 00:02:41]}
29. Qb8 {[%clk 00:10:21]} {[%emt 00:01:54]} b6 {[%clk 00:08:46]} {[%emt
00:01:35]} 30. Rf4 {[%clk 00:09:31]} {[%emt 00:00:59]} Rxe3 {[%clk 00:07:27]}
{[%emt 00:01:30]} 31. Nxe3 {[%clk 00:09:20]} {[%emt 00:00:21]} Qxe3+ {[%clk
00:07:33]} {[%emt 00:00:04]} 32. R4f2 {[%clk 00:08:18]} {[%emt 00:01:12]} Qxh3
{[%clk 00:06:37]} {[%emt 00:01:05]} 33. Qf4 {[%clk 00:07:34]} {[%emt 00:00:52]}
Nf6 {[%clk 00:05:56]} {[%emt 00:00:54]} 34. g5 {[%clk 00:06:29]} {[%emt
00:01:15]} Qg4+ {[%clk 00:05:33]} {[%emt 00:00:33]} 35. Qxg4 {[%clk 00:05:21]}
{[%emt 00:01:18]} Nxg4 {[%clk 00:05:38]} {[%emt 00:00:05]} 36. Rf4 {[%clk
00:04:39]} {[%emt 00:00:51]} Ne3 {[%clk 00:04:02]} {[%emt 00:01:46]} 37. Rc1
{[%clk 00:04:30]} {[%emt 00:00:19]} h6 {[%clk 00:03:56]} {[%emt 00:00:16]} 38.
gxh6 {[%clk 00:04:24]} {[%emt 00:00:17]} gxh6 {[%clk 00:04:05]} 39. Kf2 {[%clk
00:04:17]} {[%emt 00:00:17]} f5 {[%emt 00:01:10]} 1-0

[Event "St Kilda East and Caulfield Chess Club T3 2025 OPEN Thursdays"]
[Site "st kilda east, Australia"]
[Date "2025.08.28"]
[Round "5.9"]
[White "O'Connor, Alistair"]
[Black "Shore, Isaac"]
[Result "0-1"]
[TimeControl "60 minutes per player per game plus 10 seconds from move 1"]
[WhiteElo "1053"]
[BlackElo "562"]

1. d4 {[%clk 01:00:07]} {[%emt 00:00:04]} Nf6 {[%clk 01:00:02]} {[%emt
00:00:07]} 2. Bg5 {[%clk 00:59:59]} {[%emt 00:00:17]} d5 {[%clk 01:00:04]}
{[%emt 00:00:08]} 3. Bxf6 {[%clk 00:59:15]} {[%emt 00:00:53]} gxf6 {[%clk
00:59:59]} {[%emt 00:00:15]} 4. Nf3 {[%clk 00:59:02]} {[%emt 00:00:23]} Nc6
{[%clk 01:00:01]} {[%emt 00:00:09]} 5. e3 {[%clk 00:58:59]} {[%emt 00:00:13]}
e5 {[%clk 01:00:02]} {[%emt 00:00:09]} 6. c4 {[%clk 00:58:38]} {[%emt
00:00:31]} Bb4+ {[%clk 00:59:50]} {[%emt 00:00:21]} 7. Nc3 {[%clk 00:58:25]}
{[%emt 00:00:23]} exd4 {[%clk 00:59:24]} {[%emt 00:00:36]} 8. Nxd4 {[%clk
00:58:07]} {[%emt 00:00:28]} Nxd4 {[%clk 00:59:21]} {[%emt 00:00:12]} 9. Qxd4
{[%clk 00:58:01]} {[%emt 00:00:16]} Qe7 {[%clk 00:58:24]} {[%emt 00:01:08]} 10.
O-O-O {[%clk 00:57:43]} {[%emt 00:00:28]} Be6 {[%clk 00:58:13]} {[%emt
00:00:21]} 11. Nxd5 {[%clk 00:57:16]} {[%emt 00:00:36]} O-O-O {[%clk 00:58:01]}
{[%emt 00:00:22]} 12. Qxa7 {[%clk 00:57:13]} {[%emt 00:00:13]} Bxd5 {[%clk
00:57:49]} {[%emt 00:00:22]} 13. Qa8+ {[%clk 00:56:36]} {[%emt 00:00:48]} Kd7
{[%clk 00:57:33]} {[%emt 00:00:26]} 14. Rxd5+ {[%clk 00:56:30]} {[%emt
00:00:16]} Bd6 {[%clk 00:57:21]} {[%emt 00:00:23]} 15. Qa4+ {[%clk 00:56:11]}
{[%emt 00:00:29]} c6 {[%clk 00:57:04]} {[%emt 00:00:25]} 16. c5 {[%clk
00:56:14]} {[%emt 00:00:08]} Ra8 {[%clk 00:55:09]} {[%emt 00:02:04]} 17. Rxd6+
{[%clk 00:55:01]} {[%emt 00:01:23]} Qxd6 {[%clk 00:54:51]} {[%emt 00:00:29]} 18.
cxd6 {[%clk 00:55:02]} {[%emt 00:00:10]} Rxa4 {[%clk 00:54:48]} {[%emt
00:00:12]} 19. a3 {[%clk 00:55:05]} {[%emt 00:00:08]} Kxd6 {[%clk 00:53:50]}
{[%emt 00:01:08]} 20. Be2 {[%clk 00:55:07]} {[%emt 00:00:08]} Rg8 {[%clk
00:52:41]} {[%emt 00:01:19]} 21. g3 {[%clk 00:55:03]} {[%emt 00:00:13]} Ra5
{[%clk 00:51:07]} {[%emt 00:01:43]} 22. Bf3 {[%clk 00:54:38]} {[%emt 00:00:35]}
Rf5 {[%clk 00:50:14]} {[%emt 00:01:01]} 23. Rd1+ {[%clk 00:53:48]} {[%emt
00:00:44]} Kc7 {[%clk 00:50:19]} {[%emt 00:00:23]} 24. Be4 {[%clk 00:52:59]}
{[%emt 00:00:59]} Rxf2 {[%clk 00:49:43]} {[%emt 00:00:47]} 25. Bxh7 {[%clk
00:53:00]} {[%emt 00:00:07]} Rg4 {[%clk 00:48:15]} {[%emt 00:01:39]} 26. e4
{[%clk 00:52:55]} {[%emt 00:00:16]} Rxh2 {[%clk 00:47:25]} {[%emt 00:01:00]} 27.
Bf5 {[%clk 00:52:55]} {[%emt 00:00:10]} Rxg3 {[%clk 00:47:17]} {[%emt
00:00:18]} 28. Rd7+ {[%clk 00:52:44]} {[%emt 00:00:21]} Kb6 {[%clk 00:47:25]}
{[%emt 00:00:03]} 29. Rd1 {[%clk 00:52:11]} {[%emt 00:00:44]} Rgg2 {[%clk
00:46:37]} {[%emt 00:00:57]} 30. b4 {[%clk 00:50:44]} {[%emt 00:01:38]} Rc2+
{[%clk 00:45:39]} {[%emt 00:01:08]} 31. Kb1 {[%clk 00:50:47]} {[%emt 00:00:07]}
Rb2+ {[%clk 00:45:13]} {[%emt 00:00:47]} 32. Ka1 {[%clk 00:51:02]} {[%emt
00:00:05]} Ra2+ {[%clk 00:45:14]} {[%emt 00:00:08]} 33. Kb1 {[%clk 00:51:07]}
{[%emt 00:00:05]} Rxa3 {[%clk 00:44:43]} {[%emt 00:00:41]} 34. Rd4 {[%clk
00:50:00]} {[%emt 00:01:17]} Rg3 {[%clk 00:44:15]} {[%emt 00:00:36]} 35. Rd1
{[%clk 00:50:02]} {[%emt 00:00:09]} Rgg2 {[%clk 00:44:10]} {[%emt 00:00:14]}
0-1

[Event "St Kilda East and Caulfield Chess Club T3 2025 OPEN Thursdays"]
[Site "st kilda east, Australia"]
[Date "2025.08.28"]
[Round "5.10"]
[White "Bo, Jeremie"]
[Black "Nash, Paul"]
[Result "1-0"]
[TimeControl "60 minutes per player per game plus 10 seconds from move 1"]
[WhiteElo "473"]
[BlackElo "1009"]

1. e4 {[%clk 01:00:08]} {[%emt 00:00:03]} e5 {[%clk 01:00:06]} {[%emt
00:00:03]} 2. Nf3 {[%clk 01:00:15]} {[%emt 00:00:03]} Nc6 {[%clk 01:00:10]}
{[%emt 00:00:06]} 3. Bc4 {[%clk 01:00:22]} {[%emt 00:00:03]} Nf6 {[%clk
01:00:02]} {[%emt 00:00:18]} 4. Ng5 {[%clk 01:00:27]} {[%emt 00:00:05]} d5
{[%clk 00:59:32]} {[%emt 00:00:40]} 5. exd5 {[%clk 01:00:31]} {[%emt 00:00:06]}
Na5 {[%clk 00:59:34]} {[%emt 00:00:08]} 6. Bb5+ {[%clk 01:00:23]} {[%emt
00:00:18]} c6 {[%clk 00:59:27]} {[%emt 00:00:17]} 7. dxc6 {[%clk 01:00:27]}
{[%emt 00:00:05]} bxc6 {[%clk 00:59:29]} {[%emt 00:00:07]} 8. Be2 {[%clk
01:00:31]} {[%emt 00:00:07]} h6 {[%clk 00:58:56]} {[%emt 00:00:43]} 9. Nf3
{[%clk 01:00:23]} {[%emt 00:00:18]} Bd6 {[%clk 00:58:23]} {[%emt 00:00:43]} 10.
O-O {[%clk 01:00:04]} {[%emt 00:00:29]} O-O {[%clk 00:57:56]} {[%emt 00:00:37]}
11. c3 {[%clk 00:59:51]} {[%emt 00:00:24]} Bf5 {[%clk 00:55:54]} {[%emt
00:02:11]} 12. d3 {[%clk 00:55:39]} {[%emt 00:04:23]} Rb8 {[%clk 00:53:46]}
{[%emt 00:02:16]} 13. b4 {[%clk 00:55:18]} {[%emt 00:00:32]} Nb7 {[%clk
00:53:00]} {[%emt 00:00:57]} 14. Be3 {[%clk 00:55:09]} {[%emt 00:00:17]} Bxd3
{[%clk 00:49:41]} {[%emt 00:03:31]} 15. Bxd3 {[%clk 00:54:27]} {[%emt
00:00:52]} e4 {[%clk 00:49:42]} {[%emt 00:00:08]} 16. Be2 {[%clk 00:54:33]}
{[%emt 00:00:04]} exf3 {[%clk 00:49:38]} {[%emt 00:00:14]} 17. Bxf3 {[%clk
00:54:34]} {[%emt 00:00:09]} c5 {[%clk 00:48:15]} {[%emt 00:01:33]} 18. Nd2
{[%clk 00:53:41]} {[%emt 00:01:02]} a6 {[%clk 00:45:02]} {[%emt 00:03:24]} 19.
Nc4 {[%clk 00:53:11]} {[%emt 00:00:39]} Qc7 {[%clk 00:35:51]} {[%emt 00:09:23]}
20. Nxd6 {[%clk 00:52:15]} {[%emt 00:01:05]} Rfd8 {[%clk 00:34:09]} {[%emt
00:01:51]} 21. bxc5 {[%clk 00:49:19]} {[%emt 00:03:07]} Nxc5 {[%clk 00:33:53]}
{[%emt 00:00:25]} 22. Qc1 {[%clk 00:48:07]} {[%emt 00:01:23]} Qxd6 {[%clk
00:32:37]} {[%emt 00:01:26]} 23. Bf4 {[%clk 00:47:52]} {[%emt 00:00:25]} Qe6
{[%clk 00:24:57]} {[%emt 00:07:50]} 24. Bxb8 {[%clk 00:47:27]} {[%emt
00:00:35]} Rxb8 {[%clk 00:25:00]} {[%emt 00:00:06]} 25. Qa3 {[%clk 00:42:55]}
{[%emt 00:04:42]} Qc4 {[%clk 00:23:03]} {[%emt 00:02:07]} 26. Rab1 {[%clk
00:41:51]} {[%emt 00:01:12]} Re8 {[%clk 00:19:35]} {[%emt 00:03:40]} 27. Rfe1
{[%clk 00:41:18]} {[%emt 00:00:42]} Nfe4 {[%clk 00:18:06]} {[%emt 00:01:40]} 28.
Rb4 {[%clk 00:34:39]} {[%emt 00:06:50]} Qd5 {[%clk 00:12:27]} {[%emt 00:05:48]}
29. Rd4 {[%clk 00:33:56]} {[%emt 00:00:54]} Qc6 {[%clk 00:11:47]} {[%emt
00:00:47]} 30. Rc4 {[%clk 00:33:18]} {[%emt 00:00:51]} Qb6 {[%clk 00:08:12]}
{[%emt 00:03:45]} 31. Rxc5 {[%clk 00:31:27]} {[%emt 00:02:01]} Rb8 {[%clk
00:07:37]} {[%emt 00:00:45]} 32. Bxe4 {[%clk 00:30:43]} {[%emt 00:00:53]} 1-0

[Event "St Kilda East and Caulfield Chess Club T3 2025 OPEN Thursdays"]
[Site "st kilda east, Australia"]
[Date "2025.08.28"]
[Round "5.6"]
[White "Kalisch, Tom"]
[Black "Wang, Noah"]
[Result "1-0"]
[TimeControl "60 minutes per player per game plus 10 seconds from move 1"]
[WhiteElo "1506"]
[BlackElo "913"]

1. e4 {[%clk 00:59:20]} {[%emt 00:00:50]} c5 {[%clk 01:00:06]} {[%emt
00:00:05]} 2. Nf3 {[%clk 00:59:24]} {[%emt 00:00:05]} d6 {[%clk 01:00:09]}
{[%emt 00:00:07]} 3. d4 {[%clk 00:59:28]} {[%emt 00:00:06]} cxd4 {[%clk
01:00:16]} {[%emt 00:00:04]} 4. Nxd4 {[%clk 00:59:31]} {[%emt 00:00:06]} Nf6
{[%clk 01:00:22]} {[%emt 00:00:04]} 5. Nc3 {[%clk 00:59:36]} {[%emt 00:00:05]}
a6 {[%clk 01:00:27]} {[%emt 00:00:04]} 6. Bd3 {[%clk 00:59:37]} {[%emt
00:00:09]} e6 {[%clk 01:00:25]} {[%emt 00:00:12]} 7. O-O {[%clk 00:59:39]}
{[%emt 00:00:09]} Be7 {[%clk 01:00:27]} {[%emt 00:00:09]} 8. f4 {[%clk
00:59:33]} {[%emt 00:00:15]} Nbd7 {[%clk 01:00:18]} {[%emt 00:00:20]} 9. Kh1
{[%clk 00:58:49]} {[%emt 00:00:53]} O-O {[%clk 00:59:23]} {[%emt 00:01:05]} 10.
Qe2 {[%clk 00:58:10]} {[%emt 00:00:49]} b5 {[%clk 00:58:55]} {[%emt 00:00:39]}
11. Nc6 {[%clk 00:56:47]} {[%emt 00:01:33]} Qe8 {[%clk 00:58:36]} {[%emt
00:00:30]} 12. Nxe7+ {[%clk 00:55:00]} {[%emt 00:01:57]} Qxe7 {[%clk 00:58:40]}
{[%emt 00:00:05]} 13. e5 {[%clk 00:54:59]} {[%emt 00:00:11]} dxe5 {[%emt
00:01:20]} 14. fxe5 {[%clk 00:55:03]} {[%emt 00:00:03]} Ne8 {[%clk 00:57:37]}
{[%emt 00:00:05]} 15. Qe4 {[%clk 00:55:03]} {[%emt 00:00:11]} Nc7 {[%clk
00:56:43]} {[%emt 00:01:04]} 16. Qxh7# {[%emt 00:00:21]} 1-0